Cogmind - Beta 14 @@@ ROGUE MODE // 2024.12.25 @ 12:27:59 Player: RandomChats Result: Destroyed by D-53 Grenadier with Mini Grenade Launcher Performance ------------- Evolutions (0) 0 Regions Visited (2) 400 Robots Destroyed (22) 110 Value Destroyed (532) 532 Prototype IDs (1) 20 Alien Tech Used (0) 0 Bonus (0) 0 TOTAL SCORE: 1062 Bonus ------- None Cogmind --------- Core Integrity 0/250 Matter 300/300 Energy 100/100 System Corruption 0% Temperature Cool (0) Movement Walking (400) Ox4 Location -10/Mines Parts ------- > --- POWER (1) -------- (None) > --- PROPULSION (2) --- Aluminum Leg > --- UTILITY (2) ------ High-capacity Storage Unit Power Shielding > --- WEAPON (2) ------- Particle Gun > --- INVENTORY (20) --- Light Ion Engine Light Nuclear Core Light Treads Heat Sink High-capacity Storage Unit Large Matter Pod (32) Terrain Scan Processor Propulsion Shielding Light Armor Plating Light Armor Plating Medium Laser Beam Cannon Peak State ------------ > --- POWER ------------ Ion Engine > --- PROPULSION ------- Improved Flight Unit Improved Flight Unit > --- UTILITY ---------- High-capacity Storage Unit Power Shielding > --- WEAPON ----------- Particle Gun Light Assault Rifle > --- INVENTORY -------- Light Ion Engine Light Nuclear Core Aluminum Leg Aluminum Leg Heat Sink High-capacity Storage Unit Medium Matter Pod Terrain Scan Processor Medium Laser Beam Cannon [Rating: 13] Favorites ----------- Power Ion Engine Engine Ion Engine Propulsion Aluminum Leg Leg Aluminum Leg Wheel Wheel Flight Unit Improved Flight Unit Utility High-capacity Storage Unit Device Heat Sink Storage High-capacity Storage Unit Protection Power Shielding Weapon Light Assault Rifle Energy Gun Particle Gun Ballistic Gun Light Assault Rifle Launcher Grenade Launcher Build | -11 -10 -10 ------- Run | Yrd Mat Min Slots Evolved . | . . . Power . | . . . Propulsion . | . . . Utility . | . . . Weapon . | . . . Parts Attached 21 | 6 15 . Power 2 | 1 1 . Engine 2 | 1 1 . Core . | . . . Reactor . | . . . Propulsion 9 | 2 7 . Treads . | . . . Leg 3 | . 3 . Wheel 3 | 2 1 . Hover . | . . . Flight 3 | . 3 . Utility 3 | 1 2 . Device 1 | 1 . . Storage 1 | . 1 . Processor . | . . . Hackware . | . . . Protection 1 | . 1 . Artifact . | . . . Weapon 7 | 2 5 . Energy Gun 3 | 1 2 . Energy Cannon . | . . . Ballistic Gun 2 | 1 1 . Ballistic Cannon . | . . . Launcher 2 | . 2 . Special Weapon . | . . . Impact Weapon . | . . . Slashing Weapon . | . . . Piercing Weapon . | . . . Special Melee Weapon . | . . . Unidentified Prototypes 1 | . 1 . Parts Lost 9 | . 6 3 Power 2 | . 1 1 Propulsion 4 | . 3 1 Utility . | . . . Weapon 3 | . 2 1 Highest Loss Streak 3 | . 3 3 To Critical Strikes . | . . . Average Slot Usage (%) 94 | . 93 99 Engine 13 | . 13 13 Leg 10 | . 6 28 Wheel 4 | . 5 . Flight 9 | . 11 . Device 2 | . 2 . Storage 13 | . 13 14 Protection 11 | . 11 14 Energy Gun 13 | . 13 14 Ballistic Gun 13 | . 13 13 Peak Build Rating 13 | 6 13 9 Average Rating 9 | 3 9 8 On Entrance 5 | . 6 9 Naked Turns . | . . . Heaviest Build 52 | 7 52 50 Greatest Support 20 | 20 20 20 Greatest Overweight (x) 16 | . 16 2 Average Overweight (x) 2 | . 2 2 Largest Inventory Capacity 20 | 5 20 20 Average Capacity 18 | 5 18 20 Most Carried 16 | 3 16 12 Average Carried 10 | 1 10 12 Final Capacity 20 | 5 20 20 Final Carried 12 | 1 12 12 Class Distribution -------------------- 68% | Mutant 31% | Scavenger-Mutant Dominant Class ---------------- Mutant | -10/Materials Scavenger-Mutant | -10/Mines Resources | -11 -10 -10 ----------- Run | Yrd Mat Min Matter Collected 561 | 264 240 57 Remotely . | . . . Salvage Created 507 | 38 438 31 Parts 32 | 1 31 . Haulers Intercepted . | . . . Recyclers Shooed . | . . . Parts Field Recycled . | . . . Retrieved Matter . | . . . Parts Self-Destructed . | . . . Prevented . | . . . Kills | -11 -10 -10 ------- Run | Yrd Mat Min Combat Hostiles Destroyed 14 | 1 12 1 Guns 12 | 1 10 1 AOE 2 | . 2 . Classes Destroyed 8 | 1 6 1 Worker 3 | . 3 . Builder 1 | . 1 . Tunneler 1 | . 1 . Operator 1 | . 1 . Watcher 2 | . 2 . Swarmer 3 | . 3 . Grunt 10 | 1 9 . Demolisher 1 | . . 1 Best Kill Streak 4 | 1 4 1 Combat Bots Only 3 | 1 3 1 Max Kills in Single Turn 2 | 1 2 1 Gunslinging . | . . . Exploded 1 | . 1 . Melee . | . . . Uniques/NPCs Destroyed . | . . . Combat | -11 -10 -10 -------- Run | Yrd Mat Min Hostile Shots Fired 82 | 5 65 12 Missed 22 | 2 19 1 Damage Taken 1028 | 32 607 389 Core 265 | 10 156 99 Absorbed by Shields . | . . . Redirected to Shielding 18 | . 9 9 Core Remaining (%) 96 | 96 . . Volleys Fired 61 | 4 51 6 Largest 2 | 2 2 2 Hottest 95 | 70 95 85 Shots Fired 112 | 8 94 10 Gun 101 | 8 83 10 Cannon . | . . . Launcher 11 | . 11 . Special . | . . . Kinetic 50 | 4 42 4 Thermal 51 | 4 41 6 Explosive 11 | . 11 . Electromagnetic . | . . . Robot Hit Streak 8 | 7 8 5 Robot Miss Streak 5 | . 5 1 Penetration Max . | . . . Secondary Targets 3 | . 3 . Max Gunslinging Chain 1 | . 1 . Shots Hit Robots 67 | 7 52 8 Core Hits 40 | 2 35 3 Critical Kills . | . . . Critical Parts Destroyed . | . . . Critical Strikes 4 | 1 3 . Burn 4 | 1 3 . Melee Attacks . | . . . Impact . | . . . Slashing . | . . . Piercing . | . . . Sneak Attacks . | . . . Combat Hostiles . | . . . Follow-up Attacks . | . . . Damage Inflicted 1228 | 77 1054 97 Guns 735 | 77 561 97 Cannons . | . . . Explosions 482 | . 482 . Melee . | . . . Ramming 11 | . 11 . Kinetic 242 | 27 192 23 Thermal 493 | 50 369 74 Explosive 482 | . 482 . Electromagnetic . | . . . Impact . | . . . Slashing . | . . . Piercing . | . . . Highest Corruption . | . . . Average Corruption . | . . . Corruption Purged . | . . . Corruption Blocked . | . . . Overload Shots . | . . . Overflow Damage 22 | . 22 . Projectiles . | . . . Explosions 21 | . 21 . Melee 1 | . 1 . Knockbacks . | . . . Impact . | . . . Kinetic . | . . . Secondary . | . . . Self-Inflicted Damage 76 | . 76 . Shots 3 | . 3 . Rammed . | . . . Targets Rammed 1 | . 1 . Kicked 1 | . 1 . Crushed . | . . . Highest Temperature 248 | 98 248 114 Average Temperature 47 | 52 42 70 Received Heat Transfer 288 | 18 270 . Siege Activations . | . . . Robots Corrupted 1 | . 1 . Combat Hostiles . | . . . Parts Fried 2 | . 2 . Impact Corruptions 1 | . 1 . Robots Melted . | . . . Combat Hostiles . | . . . Parts Melted 2 | 1 . 1 Heat Transferred 1702 | 222 1295 185 Parts Sabotaged . | . . . Parts Stolen . | . . . Parts Stripped . | . . . Power Chain Reactions . | . . . Alert | -11 -10 -10 ------- Run | Yrd Mat Min Peak Influence 318 | 20 318 20 Initial 13 | . 13 1 Average 93 | 4 116 1 Maximum Alert Level 1 | . 1 . Low Security (%) 75 | 100 69 100 Level 1 24 | . 30 . Level 2 . | . . . Level 3 . | . . . Level 4 . | . . . Level 5 . | . . . High Security . | . . . Max Security . | . . . Squads Dispatched 3 | . 3 . Investigation 1 | . 1 . Extermination . | . . . Reinforcement 2 | . 2 . Assault . | . . . Garrison . | . . . Intercept . | . . . Searches Triggered . | . . . Construction Impeded . | . . . Haulers Reinforced . | . . . Active Scanning Responses . | . . . Cargo Convoy Interrupts . | . . . Stealth | -11 -10 -10 --------- Run | Yrd Mat Min Distress Signals 1 | . 1 . Communications Jammed . | . . . Distress Signals . | . . . Times Spotted 25 | 1 22 2 Peak Tracking Total 4 | 1 4 2 Tactical Retreats . | . . . Traps | -11 -10 -10 ------- Run | Yrd Mat Min Traps Triggered 1 | . 1 . Indirectly . | . . . Trap Hack Attempts . | . . . Triggered . | . . . Disarmed . | . . . Reprogrammed . | . . . Reused . | . . . Traps Extracted . | . . . Installed . | . . . Triggered . | . . . Machines | -11 -10 -10 ---------- Run | Yrd Mat Min Machines Disabled 2 | . 2 . Max in Single Turn 1 | . 1 . Machines Repaired . | . . . Machines Dismantled . | . . . Machines Sabotaged . | . . . Overloaded Fab Kills . | . . . Hacking | -11 -10 -10 --------- Run | Yrd Mat Min Machines Accessed . | . . . Terminals . | . . . Fabricators . | . . . Repair Stations . | . . . Recycling Units . | . . . Scanalyzers . | . . . Garrison Access . | . . . Total Hacks . | . . . Successful . | . . . Failed . | . . . Catastrophic . | . . . Database Lockouts . | . . . Manual . | . . . Terminals . | . . . Fabricators . | . . . Repair Stations . | . . . Recycling Units . | . . . Scanalyzers . | . . . Garrison Access . | . . . Terminal Hacks . | . . . Fabricator Hacks . | . . . Repair Station Hacks . | . . . Recycling Unit Hacks . | . . . Scanalyzer . | . . . Garrison Access Hacks . | . . . Unauthorized Hacks . | . . . Terminals . | . . . Fabricators . | . . . Repair Stations . | . . . Recycling Units . | . . . Scanalyzers . | . . . Garrison Access . | . . . Data Cores Recovered . | . . . Used . | . . . Hacking Detections . | . . . Full Trace Events . | . . . Feedback Events . | . . . Feedback Blocked . | . . . Robot Schematics Acquired . | . . . Robots Built . | . . . Authchips . | . . . Time . | . . . Total Robot Build Rating . | . . . Part Schematics Acquired . | . . . Parts Built . | . . . Authchips . | . . . Time . | . . . Total Part Build Rating . | . . . Parts Repaired . | . . . Time . | . . . Parts Recycled . | . . . Recycled Matter . | . . . Retrieved Matter . | . . . Retrieved Components . | . . . Parts Scanalyzed . | . . . Part Schematics Acquired . | . . . Parts Damaged . | . . . Bothacking | -11 -10 -10 ------------ Run | Yrd Mat Min Used RIF Installer . | . . . Robots Hacked . | . . . Non-combat . | . . . Combat . | . . . Robot Hacks Applied . | . . . Relay Couplers Released . | . . . Fabnet Peak Effective % . | . . . Robots Rewired . | . . . Allies Hacked . | . . . Hacks Repelled . | . . . Allies | -11 -10 -10 -------- Run | Yrd Mat Min Total Allies . | . . . Largest Group . | . . . Highest-Rated Group . | . . . Highest-Rated Ally . | . . . Total Orders . | . . . Ally Attacks . | . . . Total Damage . | . . . Kills . | . . . Allies Corrupted . | . . . Allies Melted 1 | . . 1 Intel | -11 -10 -10 ------- Run | Yrd Mat Min Robot Analysis Total . | . . . Derelict Logs Recovered 1 | . . 1 Drone Launches . | . . . Drone Recoveries . | . . . Exploration | -11 -10 -10 ------------- Run | Yrd Mat Min Turns Passed 1966 | 78 1579 309 Spaces Moved 800 | 74 613 113 Core 25 | 18 7 . Treads . | . . . Legs 259 | . 146 113 Wheels 320 | 56 264 . Hover . | . . . Flight 196 | . 196 . Fastest Speed 50 | 50 80 260 Average Speed 218 | 72 227 260 Slowest Speed 850 | 80 850 260 Overloaded Moves . | . . . Propulsion Burnouts . | . . . Robots Hopped . | . . . Cave-ins Triggered . | . . . Exploration Rate (%) 40 | 7 79 35 Regions Visited 2 Branch Regions 1 Pre-discovered Areas 1 | . . 1 Known Exits Taken . | . . . Unknown Exits Taken 2 | 1 1 . Scrap Searched . | . . . Spaces Dug . | . . . Terrain Destroyed 86 | . 86 . Melee . | . . . Projectile . | . . . AOE 86 | . 86 . Terrain Rammed . | . . . Walls Destroyed . | . . . Machines Disabled . | . . . Actions | -11 -10 -10 --------- Run | Yrd Mat Min Total 924 | 90 715 119 Wait . | . . . Move 798 | 73 612 113 Hop . | . . . Pick Up 30 | 7 23 . Fast Attach . | . . . Attach 21 | 6 15 . Detach 8 | . 8 . Swap . | . . . Drop 5 | . 5 . Fire 61 | 4 51 6 Melee . | . . . Ram . | . . . Kick 1 | . 1 . Crush . | . . . Escape Stasis . | . . . Rewire . | . . . Trap . | . . . Miscellaneous . | . . . Route ------- -11/Scrapyard -10/Materials (discovered 2 exits: [*Mat] / [*Min]) -10/Mines History --------- Turn | Location | Event 2 | -11/Scrapyard | Met Revision 17 46 | -11/Scrapyard | Discovered new exit (range 8) 79 | -11/Scrapyard | Entered Materials 79 | -10/Materials | Discovered new exit (range 15) 302 | -10/Materials | Build established: Mutant 316 | -10/Materials | Lost 3 parts (1p2n) 513 | -10/Materials | Core integrity fell below 50% 522 | -10/Materials | Discovered new exit (range 14) 1633 | -10/Materials | Build established: Scavenger-Mutant 1658 | -10/Materials | Entered Mines 1659 | -10/Mines | Learned location of Storage (-7) 1760 | -10/Mines | Learned Materials security intel 1891 | -10/Mines | Assembled infested the area 1896 | -10/Mines | Assisted by a Guerilla fighting off Assembled 1949 | -10/Mines | Core integrity fell below 20% 1967 | -10/Mines | Destroyed by D-53 Grenadier with Mini Grenade Launcher Last Messages --------------- Demolisher response squad. A derelict emerges from the shadows: "You need to get out of here! I've been tracking a group of Assembled to figure out where they're coming from, and they're closing on this area, come on!" K-01 Serf destroyed. The unstable cave ceiling collapses. Lgt. Ion Engine crushed. The unstable cave ceiling collapses. Wheel crushed. K-01 Serf collects debris. Lgt. Assault Rifle destroyed. Ion Engine destroyed. K-01 Serf destroyed. The unstable cave ceiling collapses. Lgt. Deuterium Engine melted. D-53 Grenadier destroyed. Aluminum Leg destroyed. The unstable cave ceiling collapses. Map ----- +----------------------------------------------------+ | ?????????????????????????????????????????????????? | | ?????????????????????????????????????????????????? | | ?????????????????????????????????????????????????? | | ?????????????????????????????????????????????????? | | ?????????????????????????????????????????????????? | | ?????????????????????????????????????????????????? | | ?????????????????????????????????????????????????? | | ?????????????????????????????????????????????????? | | ?????????????????????????????????????????????????? | | ?????????????????????????????????????????????????? | | ?????????????????????????????????????????????????? | | ?????????????????????????????????????????????????? | | ?????????????????????????????????????????????????? | | ????????????????????????????#????###?????????????? | | ????????????????????????????# ?? #?????????????? | | ????????????????????????????? ##! #?????????????? | | ???????????????????###???????? ! #?????????????? | | ???????????????????# ##??????? = #?????????????? | | ???????????????????# #??????? %% #????????###??? | | ???????????????????# #?????? *! ##??????## ##? | | ???????????????????# ####### d ##?????# #? | | ???????????????????# ## # ###???# #? | | ???????????????????# # % ##??? ## | | ???????????????????# #??? # | | ???????????????????# # ? | | ???????????????????# @ ## ### #? | | ???????????????????# # ##?########?# #? | | ????????????????# # # #?????####### #? | | ???????????????# ## #?????# ## | | ???????????????# ## #?????# ##### | | ????????????? # ## ####### #???##### | | ????????????### ## # ## #???????? | | ??????????????## ##?######## ##### ######???????? | | ???????????????##??????## ## #???# #????????????? | | ???????????????????????# ##??# #????????????? | | ??????????????????????## #### #????????????? | | ??????????????????????# #????????????? | | ?????????????????# #####????????????? | | ?????????????????# ##????????????????? | | ?????????????????###### # #?????????????????? | | ??????????????????????## ## ##?????????????????? | | ???????????????????????# ?####??????????????????? | | ???????????????????????# ???????????????????????? | | ???????????????????????# ????????????????????????? | | ???????????????????????# ????????????????????????? | | ??????????????????????? ????????????????????????? | | ??????????????????????? ?????????????????????????? | | ???????????????????????#?????????????????????????? | | ?????????????????????????????????????????????????? | | ?????????????????????????????????????????????????? | +----------------------------------------------------+ Best States ------------- Heat Dissipation 35 Energy Generation 10 Energy Capacity 250 Matter Stores 300 Matter Capacity 300 Sight Range 16 Terrain Scan Density 10 Power Shielding 33 Evasion (%) 50 Item Schematics ----------------- None Robot Schematics ------------------ None Fabricated ------------ Nothing Alien Tech Used ----------------- None Achievements -------------- Let's See Who's Tougher Power Corrupts Challenges ------------ None Game ------ Seed PulseImpulseScythe Manual? 0 Play Time 00:13:32 Cumulative 1.0 hours Start 2024.12.25 @ 12:16:01 End 2024.12.25 @ 12:27:59 Sessions 1 Manual Loads 0 Difficulty Rogue Special Mode None Game No. 3 Rogue 3 Adventurer 0 Explorer 0 Win Type - Total 0 Types 0/0/0/0/0/0/0/0/0 Lore% 0 Gallery% 3 Achievement% 4 Wizard Run 0 Options --------- Layout 1 ASCII 0 Keyboard 0 Movement Mouse Keybinds 0 Fullscreen 2 Font 24/X11 Map View 50x35 Zoom Use 0% Tactical HUD 0 Map Filters NONE Filters NONE Steam 1 RUN: fb0d06b9-66fb-4061-902d-63f2eda40271